fUST/lending_fUST_20250423
["ID","MTS","AMOUNT","RATE_DAILY","PERIOD"]
[358715977,1745400654075,-270.85239231,0.00020866,2]
[358715978,1745400654085,-500.0,0.00020866,2]
[358715979,1745400654095,-500.0,0.00020866,2]
[358715980,1745400654104,-500.0,0.00020866,2]
[358715981,1745400654115,-500.0,0.00020866,2]
[358715982,1745400654125,-500.0,0.00020866,2]
[358715983,1745400654134,-503.59034578,0.00020866,2]
[358715984,1745400654144,-500.0,0.00020866,2]
[358715985,1745400654153,-181.38634643,0.00020866,2]
[358715986,1745400654163,-500.0,0.00020866,2]
[358715987,1745400654172,-433.96761271,0.00020866,2]
[358715988,1745400654182,-500.0,0.00020866,2]
[358715989,1745400654191,-500.0,0.00020866,2]
[358715990,1745400654200,-240.21587853,0.00020866,2]
[358715991,1745400654209,-500.0,0.00020866,2]
[358715992,1745400654219,-500.0,0.00020866,2]
[358715993,1745400654229,-500.0,0.00020866,2]
[358715994,1745400654239,-500.0,0.00020866,2]
[358715995,1745400654249,-500.0,0.00020866,2]
[358715996,1745400654258,-500.0,0.00020866,2]
[358715997,1745400654268,-500.0,0.00020866,2]
[358715998,1745400654278,-500.0,0.00020866,2]
[358715999,1745400654287,-505.83960872,0.00020866,2]
[358716000,1745400654299,-500.0,0.00020866,2]
[358716001,1745400654309,-500.0,0.00020866,2]
[358716002,1745400654319,-500.0,0.00020866,2]
[358716003,1745400654329,-500.0,0.00020866,2]
[358716004,1745400654339,-500.0,0.00020866,2]
[358716005,1745400654349,-500.0,0.00020866,2]
[358716006,1745400654359,-500.0,0.00020866,2]
[358716007,1745400654369,-500.0,0.00020866,2]
[358716008,1745400654381,-723.12,0.00020866,2]
[358716009,1745400654390,-500.0,0.00020866,2]
[358716010,1745400654399,-500.0,0.00020866,2]
[358716011,1745400654410,-500.0,0.00020866,2]
[358716012,1745400654420,-500.0,0.00020866,2]
[358716013,1745400654429,-474.16363482,0.00020866,2]
[358716014,1745400654439,-512.61928939,0.00020866,2]
[358716015,1745400654449,-500.0,0.00020866,2]
[358716016,1745400654459,-500.0,0.00020866,2]
[358716017,1745400654468,-500.0,0.00020866,2]
[358716018,1745400654478,-500.0,0.00020866,2]
[358716019,1745400654488,-269.93603515,0.00020866,2]
[358716020,1745400654498,-500.0,0.00020866,2]
[358716021,1745400654507,-428.65076843,0.00020866,2]
[358716022,1745400654517,-500.0,0.00020866,2]
[358716023,1745400654527,-624.65,0.00020866,2]
[358716024,1745400654537,-500.0,0.00020866,2]
[358716025,1745400654546,-500.0,0.00020866,2]
[358716026,1745400654556,-500.0,0.00020866,2]
[358716027,1745400654566,-500.0,0.00020866,2]
[358716028,1745400654575,-500.0,0.00020866,2]
[358716029,1745400654584,-685.28,0.00020866,2]
[358716030,1745400654594,-500.0,0.00020866,2]
[358716031,1745400654603,-500.0,0.00020866,2]
[358716032,1745400654613,-500.0,0.00020866,2]
[358716033,1745400654622,-391.70207693,0.00020867,2]
[358716034,1745400654631,-500.0,0.00020873,2]
[358716035,1745400654641,-500.0,0.00020873,2]
[358716036,1745400654651,-500.0,0.00020873,2]
[358716037,1745400654661,-602.66907128,0.00020873,2]
[358716038,1745400654671,-500.0,0.00020873,2]
[358716039,1745400654680,-500.0,0.00020873,2]
[358716040,1745400654689,-509.09092124,0.00020908,2]
[358716041,1745400654699,-500.0,0.00020964,2]
[358716042,1745400654745,-500.0,0.00020964,2]
[358716043,1745400654755,-500.0,0.00020964,2]
[358716044,1745400654764,-500.0,0.00020964,2]
[358716045,1745400654774,-2037.28,0.00020964,2]
[358716046,1745400654784,-500.0,0.00020964,2]
[358716047,1745400654793,-500.0,0.00020964,2]
[358716048,1745400654802,-1934.01,0.00020964,2]
[358716049,1745400654812,-5978.58,0.00020964,2]
[358716050,1745400654823,-7184.07,0.00020964,2]
[358716051,1745400654832,-151.0,0.00020964,2]
[358716052,1745400654842,-151.0,0.00020964,2]
[358716053,1745400654851,-151.0,0.00020964,2]
[358716054,1745400654861,-348.49461895,0.0002099,2]
[358716055,1745400654872,-160.0,0.00021027,2]
[358716056,1745400654883,-160.0,0.00021027,2]
[358716057,1745400654893,-2246.0,0.00021033,2]
[358716058,1745400654903,-839.95942076,0.00021041,2]
[358716059,1745400654912,-1229.06155571,0.00021047,2]
[358716060,1745400654922,-237.625624,0.00021047,2]
[358716061,1745400654931,-237.625624,0.00021047,2]
[358716062,1745400654941,-255.245604,0.00021047,2]
[358716063,1745400654950,-291.669316,0.00021047,2]
[358716064,1745400654960,-160.0,0.00021047,2]
[358716065,1745400654970,-420.82143104,0.00021047,2]
[358716066,1745400654980,-160.0,0.00021047,2]
[358716067,1745400654989,-12573.79847128,0.00021047,2]
[358716068,1745400654999,-160.0,0.00021047,2]
[358716069,1745400655008,-160.0,0.00021047,2]
[358716070,1745400655017,-160.0,0.00021047,2]
[358716071,1745400655027,-500.0,0.00021067,2]
[358716072,1745400655037,-174.336534,0.00021067,2]
[358716073,1745400655046,-174.336534,0.00021067,2]
[358716074,1745400655055,-313.05841,0.00021067,2]
[358716075,1745400655065,-151.0,0.00021067,2]
[358716076,1745400655074,-313.05841,0.00021067,2]
[358716077,1745400655083,-151.0,0.00021069,2]
[358716078,1745400655093,-500.0,0.00021073,2]
[358716079,1745400655102,-151.0,0.00021096,2]
[358716080,1745400655111,-151.0,0.00021096,2]
[358716081,1745400655121,-178.327036,0.00021096,2]
[358716082,1745400655130,-12573.79847128,0.000211,3]
[358716083,1745400655140,-151.0,0.000211,2]
[358716084,1745400655149,-151.0,0.000211,2]
[358716085,1745400655159,-151.0,0.000211,2]
[358716086,1745400655169,-12573.79847128,0.000211,3]
[358716087,1745400655179,-160.0,0.000211,3]
[358716088,1745400655188,-839.95942076,0.000211,3]
[358716089,1745400655198,-160.0,0.000211,3]
[358716090,1745400655207,-500.0,0.00021133,2]
[358716091,1745400655217,-535.39946703,0.00021134,2]
[358716092,1745400655226,-500.0,0.00021134,2]
[358716093,1745400655236,-2342.68,0.00021134,2]
[358716094,1745400655246,-500.0,0.00021134,2]
[358716095,1745400655255,-7333.18,0.00021134,2]
[358716096,1745400655264,-500.0,0.00021134,2]
[358716097,1745400655274,-500.0,0.00021134,2]
[358716098,1745400655284,-500.0,0.00021134,2]
[358716099,1745400655294,-3125.36,0.00021135,2]
[358716100,1745400655308,-507.28883389,0.00021135,2]
[358716101,1745400655318,-500.0,0.00021135,2]
[358716102,1745400655328,-1530.8,0.00021135,2]
[358716103,1745400655338,-9469.11,0.00021135,2]
[358716104,1745400655349,-500.0,0.00021135,2]
[358716105,1745400655358,-500.0,0.00021135,2]
[358716106,1745400655368,-500.0,0.00021135,2]
[358716107,1745400655379,-500.0,0.00021135,2]
[358716108,1745400655389,-4530.67,0.00021135,2]
[358716109,1745400655399,-795.51,0.00021135,2]
[358716110,1745400655408,-500.0,0.00021135,2]
[358716111,1745400655418,-500.0,0.00021135,2]
[358716112,1745400655427,-651.53,0.00021136,2]
[358716113,1745400655437,-500.0,0.00021136,2]
[358716114,1745400655446,-995.49,0.00021136,2]
[358716115,1745400655455,-500.0,0.00021136,2]
[358716116,1745400655465,-1422.43,0.00021136,2]
[358716117,1745400655475,-500.0,0.00021136,2]
[358716118,1745400655485,-540.4,0.00021136,2]
[358716119,1745400655494,-1264.47,0.00021136,2]
[358716120,1745400655503,-500.11,0.00021136,2]
[358716121,1745400655513,-500.0,0.00021136,2]
[358716122,1745400655525,-500.0,0.00021136,2]
[358716123,1745400655535,-500.0,0.00021136,2]
[358716124,1745400655545,-500.0,0.00021136,2]
[358716125,1745400655554,-500.0,0.00021136,2]
[358716126,1745400655563,-536.72,0.00021136,2]
[358716127,1745400655574,-500.0,0.00021136,2]
[358716128,1745400655583,-500.0,0.00021136,2]
[358716129,1745400655592,-500.0,0.00021136,2]
[358716130,1745400655602,-681.92,0.00021136,2]
[358716131,1745400655612,-512.27778249,0.00021136,2]
[358716132,1745400655623,-500.0,0.00021136,2]
[358716133,1745400655633,-595.91670532,0.00021136,2]
[358716134,1745400655642,-500.0,0.00021136,2]
[358716135,1745400655651,-500.0,0.00021136,2]
[358716136,1745400655662,-500.0,0.00021136,2]
[358716137,1745400655673,-500.0,0.00021136,2]
[358716138,1745400655684,-500.0,0.00021136,2]
[358716139,1745400655693,-3948.03,0.00021136,2]
[358716140,1745400655703,-566.6748892,0.00021136,2]
[358716141,1745400655712,-500.0,0.00021136,2]
[358716142,1745400655722,-570.49,0.00021136,2]
[358716143,1745400655732,-500.0,0.00021136,2]
[358716144,1745400655741,-500.0,0.00021136,2]
[358716145,1745400655751,-500.0,0.00021136,2]
[358716146,1745400655761,-500.0,0.00021137,2]
[358716147,1745400655770,-500.0,0.00021137,2]
[358716148,1745400655779,-500.0,0.00021137,2]
[358716149,1745400655790,-658.54,0.00021137,2]
[358716150,1745400655799,-500.0,0.00021137,2]
[358716151,1745400655809,-500.0,0.00021137,2]
[358716152,1745400655818,-500.0,0.00021137,2]
[358716153,1745400655827,-500.0,0.00021137,2]
[358716154,1745400655836,-500.0,0.00021137,2]
[358716155,1745400655846,-500.0,0.00021137,2]
[358716156,1745400655855,-484.14417207,0.00021137,2]
[358716157,1745400655865,-500.0,0.00021137,2]
[358716158,1745400655875,-500.0,0.00021137,2]
[358716159,1745400655884,-250.27491273,0.00021137,2]
[358716160,1745400655894,-500.0,0.00021137,2]
[358716161,1745400655904,-500.0,0.00021137,2]
[358716162,1745400655914,-500.0,0.00021137,2]
[358716163,1745400655924,-500.0,0.00021137,2]
[358716164,1745400655933,-500.0,0.00021137,2]
[358716165,1745400655943,-500.0,0.00021137,2]
[358716166,1745400655952,-500.0,0.00021137,2]
[358716167,1745400655962,-500.0,0.00021137,2]
[358716168,1745400655972,-500.0,0.00021137,2]
[358716169,1745400655982,-510.49,0.00021137,2]
[358716170,1745400655993,-500.0,0.00021137,2]
[358716171,1745400656003,-500.0,0.00021137,2]
[358716172,1745400656013,-500.0,0.00021137,2]
[358716173,1745400656023,-500.0,0.00021137,2]
[358716174,1745400656034,-500.0,0.00021137,2]
[358716175,1745400656044,-500.0,0.00021137,2]
[358716176,1745400656055,-500.0,0.00021137,2]
[358716177,1745400656065,-519.29,0.00021137,2]
[358716178,1745400656074,-762.57,0.00021137,2]
[358716179,1745400656084,-500.0,0.00021137,2]
[358716180,1745400656093,-500.0,0.00021137,2]
[358716181,1745400656104,-1865.33,0.00021137,2]
[358716182,1745400656114,-589.27,0.00021137,2]
[358716183,1745400656124,-500.0,0.00021137,2]
[358716184,1745400656133,-639.41313612,0.00021139,2]
[358716185,1745400656143,-500.0,0.00021139,2]
[358716186,1745400656152,-483.09588877,0.00021139,2]
[358716187,1745400656443,-500.0,0.00020037,2]
[358716188,1745400656453,-300.067811,0.00020038,2]
[358716189,1745400656614,-500.0,0.00020037,2]
[358716190,1745400656920,199.72391683,0.00019938,2]
[358716191,1745400661153,-199.932189,0.00020037,2]
[358716192,1745400664353,-211.62569315,0.00020036,2]
[358716193,1745400684369,-88.37430685,0.00020036,2]
[358716194,1745400684393,-123.92950326,0.00020037,2]
[358716195,1745400697490,-176.13830774,0.00020037,2]
[358716196,1745400697514,-36.16550237,0.00020037,2]
[358716197,1745400708120,-255.80732337,0.00020027,2]
[358716198,1745400719150,367.49157678,0.00019938,2]
[358716199,1745400723054,370000.0,0.0001994,2]
[358716200,1745400740914,213.15000636,0.00019938,2]
[358716201,1745400745911,648.68832891,0.00019938,2]
[358716203,1745400768636,259.6907274,0.00019938,2]
[358716204,1745400769856,623.21909712,0.00019937,2]
[358716205,1745400779483,212.30381011,0.00019938,2]
[358716206,1745400780969,185.67772018,0.000189,2]
[358716208,1745400845008,-300.0,0.00020035,2]
[358716209,1745400869861,300.0,0.00019936,2]
[358716210,1745400904707,-300.0,0.00020035,2]
[358716211,1745400960042,545.31670998,0.00019937,2]
[358716212,1745400962968,-300.0,0.00020035,2]
[358716213,1745401023112,-300.0,0.00020035,2]
[358716215,1745401083117,-300.0,0.00020035,2]
[358716217,1745401115043,-500.0,0.00020035,2]
[358716218,1745401118298,-500.0,0.00020035,2]
[358716219,1745401139061,-422.75291951,0.00020035,2]
[358716220,1745401146751,-152.0,0.00020034,2]
[358716221,1745401150307,477.15212118,0.00019936,2]
[358716222,1745401156547,286.98072483,0.00019936,2]
[358716223,1745401156765,171.94009081,0.00019938,2]
[358716224,1745401215077,-160.0,0.00020034,2]
[358716225,1745401236459,-140.0,0.00020034,2]
[358716226,1745401236485,-20.0,0.00020035,2]
[358716227,1745401239779,-61.85728437,0.00020035,2]
[358716228,1745401239803,-388.35701563,0.00020035,2]
[358716229,1745401246604,-111.64298437,0.00020035,2]
[358716230,1745401246627,-188.35701563,0.00020035,2]
[358716231,1745401250381,-311.64298437,0.00020035,2]
[358716232,1745401250406,-28.41522687,0.00020035,2]
[358716233,1745401259306,-166.2011495,0.00020035,2]
[358716234,1745401264429,-214.1466,0.00020034,2]
[358716235,1745401272001,-85.8534,0.00020034,2]
[358716236,1745401272024,-101.90071623,0.00020035,2]
[358716237,1745401280730,-203.4829074,0.00020035,2]
[358716238,1745401280754,-49.56657835,0.00020035,2]
[358716239,1745401285568,-174.7515356,0.00020035,2]
[358716240,1745401290258,-218.19480348,0.00020035,2]
[358716241,1745401291785,-152.0,0.00020035,2]
[358716242,1745401300253,370.19480348,0.00019934,2]
[358716243,1745401325638,-221.4918,0.00020034,2]
[358716244,1745401341275,475.78324972,0.00019935,2]
[358716245,1745401357245,-78.5082,0.00020034,2]
[358716246,1745401357268,-73.4918,0.00020034,2]
[358716247,1745401372669,-159.0991751,0.00020034,2]
[358716248,1745401385245,-174.43767722,0.00020033,2]
[358716249,1745401443436,-291.90460042,0.00020033,2]
[358716250,1745401481759,-8.09539958,0.00020033,2]
[358716251,1745401481783,-152.25726319,0.00020034,2]
[358716252,1745401484764,-147.77617989,0.00020034,2]
[358716253,1745401484792,-52.22382011,0.00020034,2]
[358716254,1745401489851,-183.34613243,0.00020034,2]
[358716255,1745401494869,-160.35266277,0.00020034,2]
[358716256,1745401497829,169.88365825,0.00019937,2]
[358716257,1745401499587,-104.07738469,0.00020034,2]
[358716258,1745401499612,-209.23651307,0.00020034,2]
[358716259,1745401499639,-27.58692714,0.00020034,2]
[358716260,1745401512046,-182.16128585,0.00020033,2]
[358716261,1745401524760,-117.83871415,0.00020033,2]
[358716262,1745401524785,-48.05297574,0.00020033,2]
[358716263,1745401529135,-202.91228764,0.00020033,2]
[358716264,1745401531526,482.88421541,0.00019935,2]
[358716265,1745401542122,-294.03473662,0.00020033,2]
[358716266,1745401542151,-40.07357349,0.00020034,2]
[358716267,1745401547587,-330.38208805,0.00020034,2]
[358716268,1745401554586,-101.95741132,0.00020034,2]
[358716269,1745401554614,-139.03444268,0.00020034,2]
[358716270,1745401558358,-152.0,0.00020034,2]
[358716271,1745401563580,-197.83608001,0.00020033,2]
[358716272,1745401567248,-102.16391999,0.00020033,2]
[358716273,1745401567273,-56.93525511,0.00020033,2]
[358716274,1745401580423,-152.0,0.00020033,2]
[358716275,1745401602982,236.75739041,0.00019934,2]
[358716276,1745401619265,247.71563429,0.00019933,2]
[358716277,1745401623079,-225.95394749,0.00020032,2]
[358716278,1745401664045,-74.04605251,0.00020032,2]
[358716279,1745401664068,-202.85854791,0.00020032,2]
[358716280,1745401674492,-160.0,0.00020033,2]
[358716281,1745401683449,-280.7344203,0.00020032,2]
[358716282,1745401695967,-19.2655797,0.00020032,2]
[358716283,1745401695990,-132.7344203,0.00020032,2]
[358716284,1745401704687,-158.37060246,0.00020032,2]
[358716285,1745401716791,486.25319852,0.00019934,2]
[358716286,1745401739347,-62.16396299,0.00020032,2]
[358716287,1745401739371,-171.69317681,0.00020032,2]
[358716288,1745401743671,-233.8571398,0.00020031,2]
[358716289,1745401756292,152.0,0.00019933,2]
[358716290,1745401756360,941.96357067,0.00019933,2]
[358716291,1745401756944,-66.1428602,0.00020031,2]
[358716292,1745401756970,-164.99861781,0.00020032,2]
[358716293,1745401803206,2054.86,0.00014,30]
[358716316,1745401834227,-183.8459,0.00020031,2]
[358716317,1745401836244,1248.20370586,0.00025,120]
[358716334,1745401838082,411.2050515,0.00019934,2]
[358716339,1745401838122,-116.1541,0.00020031,2]
[358716341,1745401838132,-300.0,0.00020031,2]
[358716343,1745401838142,-1.86667759,0.00020031,2]
[358716353,1745401838231,-498.13332241,0.00020031,2]
[358716355,1745401838241,-214.09413375,0.00020031,2]
[358716357,1745401838251,-500.0,0.00020031,2]
[358716359,1745401838259,-500.0,0.00020031,2]
[358716361,1745401838269,-500.0,0.00020031,2]
[358716363,1745401838278,-500.0,0.00020031,2]
[358716365,1745401838288,-500.0,0.00020031,2]
[358716367,1745401838297,-205.50386232,0.00020031,2]
[358716369,1745401838306,-500.0,0.00020031,2]
[358716371,1745401838316,-500.0,0.00020031,2]
[358716374,1745401838326,-500.0,0.00020031,2]
[358716376,1745401838335,-500.0,0.00020031,2]
[358716378,1745401838345,-500.0,0.00020031,2]
[358716380,1745401838355,-500.0,0.00020031,2]
[358716382,1745401838364,-500.0,0.00020031,2]
[358716384,1745401838374,-500.0,0.00020031,2]
[358716386,1745401838383,-500.0,0.00020031,2]
[358716388,1745401838392,-500.0,0.00020031,2]
[358716390,1745401838402,-500.0,0.00020031,2]
[358716392,1745401838411,-500.0,0.00020031,2]
[358716394,1745401838422,-500.0,0.00020031,2]
[358716396,1745401838431,-204.01209,0.00020031,2]
[358716398,1745401838441,-500.0,0.00020032,2]
[358716400,1745401838450,-500.0,0.00020032,2]
[358716402,1745401838460,-1324.87,0.00020032,2]
[358716404,1745401838469,-245.19270101,0.00020032,2]
[358716406,1745401838479,-1993.26,0.00020032,2]
[358716408,1745401838489,-500.0,0.00020032,2]
[358716410,1745401838499,-500.0,0.00020032,2]
[358716412,1745401838508,-6515.7,0.00020032,2]
[358716414,1745401838517,-8144.31,0.00020032,2]
[358716416,1745401838526,-495.05186927,0.00020032,2]
[358716418,1745401838536,-500.0,0.00020032,2]
[358716420,1745401838545,-500.0,0.00020032,2]
[358716422,1745401838554,-500.0,0.00020032,2]
[358716424,1745401838563,-186.46363574,0.00020032,2]
[358716426,1745401838573,-3586.78,0.00020032,2]
[358716428,1745401838582,-629.78,0.00020032,2]
[358716430,1745401838592,-500.0,0.00020032,2]
[358716432,1745401838601,-500.0,0.00020032,2]
[358716434,1745401838610,-500.0,0.00020032,2]
[358716436,1745401838620,-500.0,0.00020032,2]
[358716438,1745401838630,-500.0,0.00020032,2]
[358716440,1745401838640,-500.0,0.00020032,2]
[358716442,1745401838650,-500.0,0.00020032,2]
[358716444,1745401838660,-500.0,0.00020032,2]
[358716446,1745401838669,-500.0,0.00020032,2]
[358716448,1745401838682,-500.0,0.00020032,2]
[358716450,1745401838691,-500.0,0.00020032,2]
[358716452,1745401838700,-500.0,0.00020032,2]
[358716454,1745401838710,-500.0,0.00020032,2]
[358716456,1745401838722,-615.14749941,0.00020032,2]
[358716458,1745401838731,-500.0,0.00020032,2]
[358716460,1745401838741,-28011.61063593,0.00020032,2]
[358716462,1745401838755,-34305.08009425,0.00020033,2]
[358716464,1745401838764,-500.0,0.00020033,2]
[358716466,1745401838775,-500.0,0.00020033,2]
[358716468,1745401838785,-222.37508314,0.00020033,2]
[358716469,1745401838794,-500.0,0.00020033,2]
[358716471,1745401838804,-195.78715173,0.00020033,2]
[358716473,1745401838813,-500.0,0.00020033,2]
[358716476,1745401838823,-500.0,0.00020033,2]
[358716477,1745401838832,-500.0,0.00020033,2]
[358716479,1745401838841,-500.0,0.00020033,2]
[358716481,1745401838851,-500.0,0.00020033,2]
[358716483,1745401838861,-500.52044191,0.00020034,2]
[358716485,1745401838870,-500.0,0.00020034,2]
[358716487,1745401838880,-631.45773429,0.00020034,2]
[358716489,1745401838889,-500.0,0.00020034,2]
[358716491,1745401838899,-500.0,0.00020034,2]
[358716493,1745401838908,-500.0,0.00020034,2]
[358716495,1745401838917,-463.83449763,0.00020034,2]
[358716497,1745401838927,-500.0,0.00020034,2]
[358716499,1745401838937,-500.0,0.00020034,2]
[358716501,1745401838947,-500.0,0.00020034,2]
[358716503,1745401838957,-500.0,0.00020034,2]
[358716506,1745401838966,-531.79,0.00020034,2]
[358716507,1745401838976,-500.0,0.00020034,2]
[358716509,1745401838986,-500.0,0.00020034,2]
[358716511,1745401838995,-500.0,0.00020034,2]
[358716513,1745401839005,-500.0,0.00020034,2]
[358716515,1745401839014,-500.0,0.00020034,2]
[358716517,1745401839023,-500.0,0.00020034,2]
[358716519,1745401839033,-500.0,0.00020034,2]
[358716521,1745401839042,-593.04,0.00020034,2]
[358716523,1745401839052,-500.0,0.00020034,2]
[358716525,1745401839061,-500.0,0.00020034,2]
[358716527,1745401839071,-500.0,0.00020034,2]
[358716529,1745401839081,-500.0,0.00020034,2]
[358716531,1745401839091,-500.0,0.00020034,2]
[358716533,1745401839100,-500.0,0.00020034,2]
[358716535,1745401839109,-539.57284002,0.00020034,2]
[358716537,1745401839119,-500.0,0.00020034,2]
[358716539,1745401839129,-500.0,0.00020034,2]
[358716541,1745401839139,-500.0,0.00020034,2]
[358716543,1745401839149,-500.0,0.00020034,2]
[358716546,1745401839159,-500.0,0.00020034,2]
[358716548,1745401839169,-500.0,0.00020034,2]
[358716550,1745401839179,-500.0,0.00020034,2]
[358716552,1745401839189,-500.0,0.00020034,2]
[358716554,1745401839199,-548.93,0.00020034,2]
[358716556,1745401839209,-500.0,0.00020034,2]
[358716558,1745401839219,-510.53577053,0.00020034,2]
[358716560,1745401839229,-500.0,0.00020034,2]
[358716561,1745401839238,-500.0,0.00020034,2]
[358716564,1745401839249,-500.0,0.00020034,2]
[358716566,1745401839260,-500.0,0.00020034,2]
[358716568,1745401839270,-500.0,0.00020034,2]
[358716570,1745401839279,-834.98,0.00020034,2]
[358716572,1745401839288,-500.0,0.00020034,2]
[358716574,1745401839297,-500.0,0.00020034,2]
[358716576,1745401839307,-500.0,0.00020034,2]
[358716578,1745401839316,-500.0,0.00020034,2]
[358716580,1745401839326,-500.0,0.00020034,2]
[358716582,1745401839336,-500.0,0.00020034,2]
[358716584,1745401839346,-500.0,0.00020034,2]
[358716586,1745401839355,-500.0,0.00020034,2]
[358716588,1745401839365,-1194.99,0.00020034,2]
[358716590,1745401839374,-500.0,0.00020034,2]
[358716592,1745401839383,-500.0,0.00020034,2]
[358716594,1745401839393,-500.0,0.00020034,2]
[358716596,1745401839402,-500.0,0.00020034,2]
[358716598,1745401839412,-500.0,0.00020034,2]
[358716600,1745401839421,-500.0,0.00020034,2]
[358716602,1745401839431,-500.0,0.00020034,2]
[358716603,1745401839440,-500.0,0.00020034,2]
[358716605,1745401839450,-500.0,0.00020034,2]
[358716607,1745401839459,-500.0,0.00020034,2]
[358716609,1745401839469,-503.76165229,0.00020034,2]
[358716611,1745401839479,-500.0,0.00020034,2]
[358716613,1745401839488,-500.0,0.00020034,2]
[358716616,1745401839498,-500.0,0.00020034,2]
[358716618,1745401839508,-500.0,0.00020034,2]
[358716620,1745401839518,-500.0,0.00020034,2]
[358716622,1745401839527,-1057.04,0.00020034,2]
[358716624,1745401839537,-633.50454344,0.00020034,2]
[358716626,1745401839547,-500.0,0.00020034,2]
[358716628,1745401839556,-500.0,0.00020034,2]
[358716630,1745401839566,-500.0,0.00020034,2]
[358716633,1745401839576,-500.0,0.00020034,2]
[358716634,1745401839585,-500.0,0.00020034,2]
[358716637,1745401839595,-500.0,0.00020034,2]
[358716639,1745401839605,-500.0,0.00020034,2]
[358716641,1745401839615,-500.0,0.00020034,2]
[358716643,1745401839624,-506.10582599,0.00020034,2]
[358716645,1745401839634,-500.0,0.00020034,2]
[358716647,1745401839644,-500.0,0.00020034,2]
[358716648,1745401839654,-869.93,0.00020034,2]
[358716650,1745401839664,-503.93878374,0.00020034,2]
[358716653,1745401839676,-507.17209265,0.00020034,2]
[358716656,1745401839686,-501.53352923,0.00020034,2]
[358716658,1745401839695,-579.37,0.00020034,2]
[358716661,1745401839705,-500.0,0.00020034,2]
[358716662,1745401839715,-500.0,0.00020034,2]
[358716664,1745401839724,-500.0,0.00020034,2]
[358716666,1745401839734,-504.18545654,0.00020034,2]
[358716668,1745401839743,-500.0,0.00020034,2]
[358716670,1745401839755,-500.0,0.00020034,2]
[358716672,1745401839765,-500.0,0.00020034,2]
[358716674,1745401839775,-500.0,0.00020034,2]
[358716676,1745401839784,-500.0,0.00020034,2]
[358716678,1745401839794,-500.0,0.00020034,2]
[358716681,1745401839804,-500.0,0.00020034,2]
[358716682,1745401839813,-500.0,0.00020034,2]
[358716684,1745401839822,-500.0,0.00020034,2]
[358716687,1745401839832,-636.35,0.00020034,2]
[358716688,1745401839842,-500.0,0.00020034,2]
[358716690,1745401839852,-341.85178291,0.00020034,2]
[358716693,1745401839861,-500.0,0.00020034,2]
[358716694,1745401839872,-500.0,0.00020034,2]
[358716696,1745401839882,-500.0,0.00020034,2]
[358716698,1745401839892,-550.04717889,0.00020034,2]
[358716700,1745401839901,-500.0,0.00020034,2]
[358716702,1745401839911,-500.0,0.00020034,2]
[358716704,1745401839920,-500.0,0.00020034,2]
[358716706,1745401839931,-500.0,0.00020034,2]
[358716709,1745401839942,-707.85,0.00020034,2]
[358716710,1745401839951,-500.0,0.00020034,2]
[358716712,1745401839960,-500.0,0.00020034,2]
[358716714,1745401839970,-500.0,0.00020034,2]
[358716716,1745401839980,-538.9233552,0.00020034,2]